Workbook

Sheet Function
A1: x | B1: Square | G1: 1
A2: 1 | B2: =3*Square(A2+1) -> 12 | G2: 2
A3: 2 | B3: =2*Square(A3+1) -> 18 | G3: 3
A4: 3 | B4: =2*Square(A4+1) -> 32 | G4: 4
A7: x1 | B7: y1 | C7: x2 | D7: y2 | E7: Distance
A8: 0 | B8: 0 | C8: 1 | D8: 1 | E8: =Distance(A8,B8,C8,D8) -> 1.414213562
A14: 1 | B14: 2 | C14: 3 | D14: 4 | E14: 5 | F14: 6 | G14: 7 | H14: 8 | I14: 9 | J14: 10
A16: Sum
A17: =SUM(A14:J14) -> 55
A20: 10 | B20: 5 | C20: 4 | D20: 1 | E20: 2 | F20: 8 | G20: 6 | H20: 9 | I20: 7 | J20: 3
A22: N | B22: Top | C22: Bottom | D22: Middle
A23: 1 | B23: =TopSUM($A$20:$J$20,A23) -> 10 | C23: =BottomSum($A$20:$J$20,A23) -> 1 | D23: =SumMiddle($A$20:$J$20,A23) -> 44
A24: 2 | B24: =TopSUM($A$20:$J$20,A24) -> 19 | C24: =BottomSum($A$20:$J$20,A24) -> 3 | D24: =SumMiddle($A$20:$J$20,A24) -> 33
A25: 3 | B25: 27 | C25: 6 | D25: 22
A26: 4 | B26: 34 | C26: 10 | D26: 11
A27: 10 | B27: 55 | C27: 55
A30: First | B30: Last | C30: Sum
A31: C14 | B31: E14 | C31: =MySum2(A31&":"&B31) -> 12
C32: =MySum2("A20:E20") -> 22

Sheet Cannon Shell
A1: Constants
A2: dT | B2: =0.5 -> 0.5 | C2: secs
A3: Gravity | B3: =32.17 -> 32.17 | C3: ft/sec/sec | G3: Label | H3: ="Trajectory:"&B10&"@"&B7&"°" -> Trajectory:1214@13.1°
A5: Inputs
A6: Angle | B6: 131 | E6: [0,90]
A7: (degrees) | B7: =B6/10 -> 13.1 | E7: Step= .1
A9: Speed | B9: 1214 | E9: [0, 2000]
A10: (ft/sec) | B10: =B9 -> 1214 | E10: Step = 1
A12: Target X | B12: 10000
A13: Target Y | B13: 2000
A15: Time | B15: X(Time) | C15: Y(Time)
A16: =0 -> 0 | B16: =0 -> 0 | C16: =0 -> 0
A17: =$B$2+A16 -> 0.5 | B17: =IF( C17<0,B16, NewX(B16,speed,angle,dT) ) -> 591.2034121 | C17: =IF(C16<0,-1,NewY(C16,speed,angle,Gravity,A17,dT) ) -> 129.5348436
A18: 1 | B18: =IF( C18<0,B17, NewX(B17,speed,angle,dT) ) -> 1182.406824 | C18: =IF(C17<0,-1,NewY(C17,speed,angle,Gravity,A18,dT) ) -> 251.0271872
A19: 1.5 | B19: =IF( C19<0,B18, NewX(B18,speed,angle,dT) ) -> 1773.610236 | C19: =IF(C18<0,-1,NewY(C18,speed,angle,Gravity,A19,dT) ) -> 364.4770308
A20: 2 | B20: =IF( C20<0,B19, NewX(B19,speed,angle,dT) ) -> 2364.813649 | C20: =IF(C19<0,-1,NewY(C19,speed,angle,Gravity,A20,dT) ) -> 469.8843745
A21: 2.5 | B21: =IF( C21<0,B20, NewX(B20,speed,angle,dT) ) -> 2956.017061 | C21: =IF(C20<0,-1,NewY(C20,speed,angle,Gravity,A21,dT) ) -> 567.2492181
A22: 3 | B22: =IF( C22<0,B21, NewX(B21,speed,angle,dT) ) -> 3547.220473 | C22: =IF(C21<0,-1,NewY(C21,speed,angle,Gravity,A22,dT) ) -> 656.5715617
A23: 3.5 | B23: =IF( C23<0,B22, NewX(B22,speed,angle,dT) ) -> 4138.423885 | C23: =IF(C22<0,-1,NewY(C22,speed,angle,Gravity,A23,dT) ) -> 737.8514053
A24: 4 | B24: =IF( C24<0,B23, NewX(B23,speed,angle,dT) ) -> 4729.627297 | C24: =IF(C23<0,-1,NewY(C23,speed,angle,Gravity,A24,dT) ) -> 811.0887489
A25: 4.5 | B25: =IF( C25<0,B24, NewX(B24,speed,angle,dT) ) -> 5320.830709 | C25: =IF(C24<0,-1,NewY(C24,speed,angle,Gravity,A25,dT) ) -> 876.2835925
A26: 5 | B26: =IF( C26<0,B25, NewX(B25,speed,angle,dT) ) -> 5912.034121 | C26: =IF(C25<0,-1,NewY(C25,speed,angle,Gravity,A26,dT) ) -> 933.4359361
A27: 5.5 | B27: =IF( C27<0,B26, NewX(B26,speed,angle,dT) ) -> 6503.237534 | C27: =IF(C26<0,-1,NewY(C26,speed,angle,Gravity,A27,dT) ) -> 982.5457798
A28: 6 | B28: =IF( C28<0,B27, NewX(B27,speed,angle,dT) ) -> 7094.440946 | C28: =IF(C27<0,-1,NewY(C27,speed,angle,Gravity,A28,dT) ) -> 1023.613123
A29: 6.5 | B29: =IF( C29<0,B28, NewX(B28,speed,angle,dT) ) -> 7685.644358 | C29: =IF(C28<0,-1,NewY(C28,speed,angle,Gravity,A29,dT) ) -> 1056.637967
A30: 7 | B30: =IF( C30<0,B29, NewX(B29,speed,angle,dT) ) -> 8276.84777 | C30: =IF(C29<0,-1,NewY(C29,speed,angle,Gravity,A30,dT) ) -> 1081.620311
A31: 7.5 | B31: =IF( C31<0,B30, NewX(B30,speed,angle,dT) ) -> 8868.051182 | C31: =IF(C30<0,-1,NewY(C30,speed,angle,Gravity,A31,dT) ) -> 1098.560154
A32: 8 | B32: =IF( C32<0,B31, NewX(B31,speed,angle,dT) ) -> 9459.254594 | C32: =IF(C31<0,-1,NewY(C31,speed,angle,Gravity,A32,dT) ) -> 1107.457498
A33: 8.5 | B33: =IF( C33<0,B32, NewX(B32,speed,angle,dT) ) -> 10050.45801 | C33: =IF(C32<0,-1,NewY(C32,speed,angle,Gravity,A33,dT) ) -> 1108.312341 | L33: 3 | N33: =COUNTIF(L36:L40,IF(L33>=2,TRUE,FALSE)) -> 0
A34: 9 | B34: =IF( C34<0,B33, NewX(B33,speed,angle,dT) ) -> 10641.66142 | C34: =IF(C33<0,-1,NewY(C33,speed,angle,Gravity,A34,dT) ) -> 1101.124685
A35: 9.5 | B35: =IF( C35<0,B34, NewX(B34,speed,angle,dT) ) -> 11232.86483 | C35: =IF(C34<0,-1,NewY(C34,speed,angle,Gravity,A35,dT) ) -> 1085.894529
A36: 10 | B36: =IF( C36<0,B35, NewX(B35,speed,angle,dT) ) -> 11824.06824 | C36: =IF(C35<0,-1,NewY(C35,speed,angle,Gravity,A36,dT) ) -> 1062.621872 | L36: 1
A37: 10.5 | B37: =IF( C37<0,B36, NewX(B36,speed,angle,dT) ) -> 12415.27165 | C37: =IF(C36<0,-1,NewY(C36,speed,angle,Gravity,A37,dT) ) -> 1031.306716 | L37: 2
A38: 11 | B38: =IF( C38<0,B37, NewX(B37,speed,angle,dT) ) -> 13006.47507 | C38: =IF(C37<0,-1,NewY(C37,speed,angle,Gravity,A38,dT) ) -> 991.9490595 | L38: 3
A39: 11.5 | B39: =IF( C39<0,B38, NewX(B38,speed,angle,dT) ) -> 13597.67848 | C39: =IF(C38<0,-1,NewY(C38,speed,angle,Gravity,A39,dT) ) -> 944.5489031 | L39: 4
A40: 12 | B40: =IF( C40<0,B39, NewX(B39,speed,angle,dT) ) -> 14188.88189 | C40: =IF(C39<0,-1,NewY(C39,speed,angle,Gravity,A40,dT) ) -> 889.1062467 | L40: 5
A41: 12.5 | B41: =IF( C41<0,B40, NewX(B40,speed,angle,dT) ) -> 14780.0853 | C41: =IF(C40<0,-1,NewY(C40,speed,angle,Gravity,A41,dT) ) -> 825.6210904
A42: 13 | B42: =IF( C42<0,B41, NewX(B41,speed,angle,dT) ) -> 15371.28872 | C42: =IF(C41<0,-1,NewY(C41,speed,angle,Gravity,A42,dT) ) -> 754.093434
A43: 13.5 | B43: =IF( C43<0,B42, NewX(B42,speed,angle,dT) ) -> 15962.49213 | C43: =IF(C42<0,-1,NewY(C42,speed,angle,Gravity,A43,dT) ) -> 674.5232776
A44: 14 | B44: =IF( C44<0,B43, NewX(B43,speed,angle,dT) ) -> 16553.69554 | C44: =IF(C43<0,-1,NewY(C43,speed,angle,Gravity,A44,dT) ) -> 586.9106212
A45: 14.5 | B45: =IF( C45<0,B44, NewX(B44,speed,angle,dT) ) -> 17144.89895 | C45: =IF(C44<0,-1,NewY(C44,speed,angle,Gravity,A45,dT) ) -> 491.2554648
A46: 15 | B46: =IF( C46<0,B45, NewX(B45,speed,angle,dT) ) -> 17736.10236 | C46: =IF(C45<0,-1,NewY(C45,speed,angle,Gravity,A46,dT) ) -> 387.5578084
A47: 15.5 | B47: =IF( C47<0,B46, NewX(B46,speed,angle,dT) ) -> 18327.30578 | C47: =IF(C46<0,-1,NewY(C46,speed,angle,Gravity,A47,dT) ) -> 275.817652
A48: 16 | B48: =IF( C48<0,B47, NewX(B47,speed,angle,dT) ) -> 18918.50919 | C48: =IF(C47<0,-1,NewY(C47,speed,angle,Gravity,A48,dT) ) -> 156.0349957
A49: 16.5 | B49: =IF( C49<0,B48, NewX(B48,speed,angle,dT) ) -> 19509.7126 | C49: =IF(C48<0,-1,NewY(C48,speed,angle,Gravity,A49,dT) ) -> 28.20983927
A50: 17 | B50: =IF( C50<0,B49, NewX(B49,speed,angle,dT) ) -> 19509.7126 | C50: =IF(C49<0,-1,NewY(C49,speed,angle,Gravity,A50,dT) ) -> -107.6578171
A51: 17.5 | B51: =IF( C51<0,B50, NewX(B50,speed,angle,dT) ) -> 19509.7126 | C51: =IF(C50<0,-1,NewY(C50,speed,angle,Gravity,A51,dT) ) -> -1
A52: 18 | B52: =IF( C52<0,B51, NewX(B51,speed,angle,dT) ) -> 19509.7126 | C52: =IF(C51<0,-1,NewY(C51,speed,angle,Gravity,A52,dT) ) -> -1
A53: 18.5 | B53: =IF( C53<0,B52, NewX(B52,speed,angle,dT) ) -> 19509.7126 | C53: =IF(C52<0,-1,NewY(C52,speed,angle,Gravity,A53,dT) ) -> -1 | E53: What is the minimum speed for a cannon shell to reach the target,
A54: 19 | B54: =IF( C54<0,B53, NewX(B53,speed,angle,dT) ) -> 19509.7126 | C54: =IF(C53<0,-1,NewY(C53,speed,angle,Gravity,A54,dT) ) -> -1 | E54: and what is the angle to shoot the cannon at that speed.
A55: 19.5 | B55: =IF( C55<0,B54, NewX(B54,speed,angle,dT) ) -> 19509.7126 | C55: =IF(C54<0,-1,NewY(C54,speed,angle,Gravity,A55,dT) ) -> -1
A56: 20 | B56: =IF( C56<0,B55, NewX(B55,speed,angle,dT) ) -> 19509.7126 | C56: =IF(C55<0,-1,NewY(C55,speed,angle,Gravity,A56,dT) ) -> -1
A57: 20.5 | B57: =IF( C57<0,B56, NewX(B56,speed,angle,dT) ) -> 19509.7126 | C57: =IF(C56<0,-1,NewY(C56,speed,angle,Gravity,A57,dT) ) -> -1
A58: 21 | B58: =IF( C58<0,B57, NewX(B57,speed,angle,dT) ) -> 19509.7126 | C58: =IF(C57<0,-1,NewY(C57,speed,angle,Gravity,A58,dT) ) -> -1
A59: 21.5 | B59: =IF( C59<0,B58, NewX(B58,speed,angle,dT) ) -> 19509.7126 | C59: =IF(C58<0,-1,NewY(C58,speed,angle,Gravity,A59,dT) ) -> -1
A60: 22 | B60: =IF( C60<0,B59, NewX(B59,speed,angle,dT) ) -> 19509.7126 | C60: =IF(C59<0,-1,NewY(C59,speed,angle,Gravity,A60,dT) ) -> -1
A61: 22.5 | B61: =IF( C61<0,B60, NewX(B60,speed,angle,dT) ) -> 19509.7126 | C61: =IF(C60<0,-1,NewY(C60,speed,angle,Gravity,A61,dT) ) -> -1
A62: 23 | B62: =IF( C62<0,B61, NewX(B61,speed,angle,dT) ) -> 19509.7126 | C62: =IF(C61<0,-1,NewY(C61,speed,angle,Gravity,A62,dT) ) -> -1
A63: 23.5 | B63: =IF( C63<0,B62, NewX(B62,speed,angle,dT) ) -> 19509.7126 | C63: =IF(C62<0,-1,NewY(C62,speed,angle,Gravity,A63,dT) ) -> -1
A64: 24 | B64: =IF( C64<0,B63, NewX(B63,speed,angle,dT) ) -> 19509.7126 | C64: =IF(C63<0,-1,NewY(C63,speed,angle,Gravity,A64,dT) ) -> -1
A65: 24.5 | B65: =IF( C65<0,B64, NewX(B64,speed,angle,dT) ) -> 19509.7126 | C65: =IF(C64<0,-1,NewY(C64,speed,angle,Gravity,A65,dT) ) -> -1
A66: 25 | B66: =IF( C66<0,B65, NewX(B65,speed,angle,dT) ) -> 19509.7126 | C66: =IF(C65<0,-1,NewY(C65,speed,angle,Gravity,A66,dT) ) -> -1
A67: 25.5 | B67: =IF( C67<0,B66, NewX(B66,speed,angle,dT) ) -> 19509.7126 | C67: =IF(C66<0,-1,NewY(C66,speed,angle,Gravity,A67,dT) ) -> -1
A68: 26 | B68: =IF( C68<0,B67, NewX(B67,speed,angle,dT) ) -> 19509.7126 | C68: =IF(C67<0,-1,NewY(C67,speed,angle,Gravity,A68,dT) ) -> -1
A69: 26.5 | B69: =IF( C69<0,B68, NewX(B68,speed,angle,dT) ) -> 19509.7126 | C69: =IF(C68<0,-1,NewY(C68,speed,angle,Gravity,A69,dT) ) -> -1
A70: 27 | B70: =IF( C70<0,B69, NewX(B69,speed,angle,dT) ) -> 19509.7126 | C70: =IF(C69<0,-1,NewY(C69,speed,angle,Gravity,A70,dT) ) -> -1
A71: 27.5 | B71: =IF( C71<0,B70, NewX(B70,speed,angle,dT) ) -> 19509.7126 | C71: =IF(C70<0,-1,NewY(C70,speed,angle,Gravity,A71,dT) ) -> -1
A72: 28 | B72: =IF( C72<0,B71, NewX(B71,speed,angle,dT) ) -> 19509.7126 | C72: =IF(C71<0,-1,NewY(C71,speed,angle,Gravity,A72,dT) ) -> -1
A73: 28.5 | B73: =IF( C73<0,B72, NewX(B72,speed,angle,dT) ) -> 19509.7126 | C73: =IF(C72<0,-1,NewY(C72,speed,angle,Gravity,A73,dT) ) -> -1
A74: 29 | B74: =IF( C74<0,B73, NewX(B73,speed,angle,dT) ) -> 19509.7126 | C74: =IF(C73<0,-1,NewY(C73,speed,angle,Gravity,A74,dT) ) -> -1
A75: 29.5 | B75: =IF( C75<0,B74, NewX(B74,speed,angle,dT) ) -> 19509.7126 | C75: =IF(C74<0,-1,NewY(C74,speed,angle,Gravity,A75,dT) ) -> -1
A76: 30 | B76: =IF( C76<0,B75, NewX(B75,speed,angle,dT) ) -> 19509.7126 | C76: =IF(C75<0,-1,NewY(C75,speed,angle,Gravity,A76,dT) ) -> -1
A77: 30.5 | B77: =IF( C77<0,B76, NewX(B76,speed,angle,dT) ) -> 19509.7126 | C77: =IF(C76<0,-1,NewY(C76,speed,angle,Gravity,A77,dT) ) -> -1
A78: 31 | B78: =IF( C78<0,B77, NewX(B77,speed,angle,dT) ) -> 19509.7126 | C78: =IF(C77<0,-1,NewY(C77,speed,angle,Gravity,A78,dT) ) -> -1
A79: 31.5 | B79: =IF( C79<0,B78, NewX(B78,speed,angle,dT) ) -> 19509.7126 | C79: =IF(C78<0,-1,NewY(C78,speed,angle,Gravity,A79,dT) ) -> -1
A80: 32 | B80: =IF( C80<0,B79, NewX(B79,speed,angle,dT) ) -> 19509.7126 | C80: =IF(C79<0,-1,NewY(C79,speed,angle,Gravity,A80,dT) ) -> -1
A81: =$B$2+A80 -> 32.5 | B81: =IF( C81<0,B80, NewX(B80,speed,angle,dT) ) -> 19509.7126 | C81: =IF(C80<0,-1,NewY(C80,speed,angle,Gravity,A81,dT) ) -> -1
A82: 33 | B82: =IF( C82<0,B81, NewX(B81,speed,angle,dT) ) -> 19509.7126 | C82: =IF(C81<0,-1,NewY(C81,speed,angle,Gravity,A82,dT) ) -> -1
A83: 33.5 | B83: =IF( C83<0,B82, NewX(B82,speed,angle,dT) ) -> 19509.7126 | C83: =IF(C82<0,-1,NewY(C82,speed,angle,Gravity,A83,dT) ) -> -1
A84: 34 | B84: =IF( C84<0,B83, NewX(B83,speed,angle,dT) ) -> 19509.7126 | C84: =IF(C83<0,-1,NewY(C83,speed,angle,Gravity,A84,dT) ) -> -1
A85: 34.5 | B85: =IF( C85<0,B84, NewX(B84,speed,angle,dT) ) -> 19509.7126 | C85: =IF(C84<0,-1,NewY(C84,speed,angle,Gravity,A85,dT) ) -> -1
A86: 35 | B86: =IF( C86<0,B85, NewX(B85,speed,angle,dT) ) -> 19509.7126 | C86: =IF(C85<0,-1,NewY(C85,speed,angle,Gravity,A86,dT) ) -> -1
A87: 35.5 | B87: =IF( C87<0,B86, NewX(B86,speed,angle,dT) ) -> 19509.7126 | C87: =IF(C86<0,-1,NewY(C86,speed,angle,Gravity,A87,dT) ) -> -1
A88: 36 | B88: =IF( C88<0,B87, NewX(B87,speed,angle,dT) ) -> 19509.7126 | C88: =IF(C87<0,-1,NewY(C87,speed,angle,Gravity,A88,dT) ) -> -1
A89: 36.5 | B89: =IF( C89<0,B88, NewX(B88,speed,angle,dT) ) -> 19509.7126 | C89: =IF(C88<0,-1,NewY(C88,speed,angle,Gravity,A89,dT) ) -> -1
A90: 37 | B90: =IF( C90<0,B89, NewX(B89,speed,angle,dT) ) -> 19509.7126 | C90: =IF(C89<0,-1,NewY(C89,speed,angle,Gravity,A90,dT) ) -> -1
A91: 37.5 | B91: =IF( C91<0,B90, NewX(B90,speed,angle,dT) ) -> 19509.7126 | C91: =IF(C90<0,-1,NewY(C90,speed,angle,Gravity,A91,dT) ) -> -1
A92: 38 | B92: =IF( C92<0,B91, NewX(B91,speed,angle,dT) ) -> 19509.7126 | C92: =IF(C91<0,-1,NewY(C91,speed,angle,Gravity,A92,dT) ) -> -1
A93: 38.5 | B93: =IF( C93<0,B92, NewX(B92,speed,angle,dT) ) -> 19509.7126 | C93: =IF(C92<0,-1,NewY(C92,speed,angle,Gravity,A93,dT) ) -> -1
A94: 39 | B94: =IF( C94<0,B93, NewX(B93,speed,angle,dT) ) -> 19509.7126 | C94: =IF(C93<0,-1,NewY(C93,speed,angle,Gravity,A94,dT) ) -> -1
A95: 39.5 | B95: =IF( C95<0,B94, NewX(B94,speed,angle,dT) ) -> 19509.7126 | C95: =IF(C94<0,-1,NewY(C94,speed,angle,Gravity,A95,dT) ) -> -1
A96: 40 | B96: =IF( C96<0,B95, NewX(B95,speed,angle,dT) ) -> 19509.7126 | C96: =IF(C95<0,-1,NewY(C95,speed,angle,Gravity,A96,dT) ) -> -1
A97: 40.5 | B97: =IF( C97<0,B96, NewX(B96,speed,angle,dT) ) -> 19509.7126 | C97: =IF(C96<0,-1,NewY(C96,speed,angle,Gravity,A97,dT) ) -> -1
A98: 41 | B98: =IF( C98<0,B97, NewX(B97,speed,angle,dT) ) -> 19509.7126 | C98: =IF(C97<0,-1,NewY(C97,speed,angle,Gravity,A98,dT) ) -> -1
A99: 41.5 | B99: =IF( C99<0,B98, NewX(B98,speed,angle,dT) ) -> 19509.7126 | C99: =IF(C98<0,-1,NewY(C98,speed,angle,Gravity,A99,dT) ) -> -1
A100: 42 | B100: =IF( C100<0,B99, NewX(B99,speed,angle,dT) ) -> 19509.7126 | C100: =IF(C99<0,-1,NewY(C99,speed,angle,Gravity,A100,dT) ) -> -1
A101: 42.5 | B101: =IF( C101<0,B100, NewX(B100,speed,angle,dT) ) -> 19509.7126 | C101: =IF(C100<0,-1,NewY(C100,speed,angle,Gravity,A101,dT) ) -> -1
A102: 43 | B102: =IF( C102<0,B101, NewX(B101,speed,angle,dT) ) -> 19509.7126 | C102: =IF(C101<0,-1,NewY(C101,speed,angle,Gravity,A102,dT) ) -> -1
A103: 43.5 | B103: =IF( C103<0,B102, NewX(B102,speed,angle,dT) ) -> 19509.7126 | C103: =IF(C102<0,-1,NewY(C102,speed,angle,Gravity,A103,dT) ) -> -1
A104: 44 | B104: =IF( C104<0,B103, NewX(B103,speed,angle,dT) ) -> 19509.7126 | C104: =IF(C103<0,-1,NewY(C103,speed,angle,Gravity,A104,dT) ) -> -1
A105: 44.5 | B105: =IF( C105<0,B104, NewX(B104,speed,angle,dT) ) -> 19509.7126 | C105: =IF(C104<0,-1,NewY(C104,speed,angle,Gravity,A105,dT) ) -> -1
A106: 45 | B106: =IF( C106<0,B105, NewX(B105,speed,angle,dT) ) -> 19509.7126 | C106: =IF(C105<0,-1,NewY(C105,speed,angle,Gravity,A106,dT) ) -> -1
A107: 45.5 | B107: =IF( C107<0,B106, NewX(B106,speed,angle,dT) ) -> 19509.7126 | C107: =IF(C106<0,-1,NewY(C106,speed,angle,Gravity,A107,dT) ) -> -1
A108: 46 | B108: =IF( C108<0,B107, NewX(B107,speed,angle,dT) ) -> 19509.7126 | C108: =IF(C107<0,-1,NewY(C107,speed,angle,Gravity,A108,dT) ) -> -1
A109: 46.5 | B109: =IF( C109<0,B108, NewX(B108,speed,angle,dT) ) -> 19509.7126 | C109: =IF(C108<0,-1,NewY(C108,speed,angle,Gravity,A109,dT) ) -> -1
A110: 47 | B110: =IF( C110<0,B109, NewX(B109,speed,angle,dT) ) -> 19509.7126 | C110: =IF(C109<0,-1,NewY(C109,speed,angle,Gravity,A110,dT) ) -> -1
A111: 47.5 | B111: =IF( C111<0,B110, NewX(B110,speed,angle,dT) ) -> 19509.7126 | C111: =IF(C110<0,-1,NewY(C110,speed,angle,Gravity,A111,dT) ) -> -1
A112: 48 | B112: =IF( C112<0,B111, NewX(B111,speed,angle,dT) ) -> 19509.7126 | C112: =IF(C111<0,-1,NewY(C111,speed,angle,Gravity,A112,dT) ) -> -1
A113: 48.5 | B113: =IF( C113<0,B112, NewX(B112,speed,angle,dT) ) -> 19509.7126 | C113: =IF(C112<0,-1,NewY(C112,speed,angle,Gravity,A113,dT) ) -> -1
A114: 49 | B114: =IF( C114<0,B113, NewX(B113,speed,angle,dT) ) -> 19509.7126 | C114: =IF(C113<0,-1,NewY(C113,speed,angle,Gravity,A114,dT) ) -> -1
A115: 49.5 | B115: =IF( C115<0,B114, NewX(B114,speed,angle,dT) ) -> 19509.7126 | C115: =IF(C114<0,-1,NewY(C114,speed,angle,Gravity,A115,dT) ) -> -1
A116: 50 | B116: =IF( C116<0,B115, NewX(B115,speed,angle,dT) ) -> 19509.7126 | C116: =IF(C115<0,-1,NewY(C115,speed,angle,Gravity,A116,dT) ) -> -1
A117: 50.5 | B117: =IF( C117<0,B116, NewX(B116,speed,angle,dT) ) -> 19509.7126 | C117: =IF(C116<0,-1,NewY(C116,speed,angle,Gravity,A117,dT) ) -> -1
A118: 51 | B118: =IF( C118<0,B117, NewX(B117,speed,angle,dT) ) -> 19509.7126 | C118: =IF(C117<0,-1,NewY(C117,speed,angle,Gravity,A118,dT) ) -> -1
A119: 51.5 | B119: =IF( C119<0,B118, NewX(B118,speed,angle,dT) ) -> 19509.7126 | C119: =IF(C118<0,-1,NewY(C118,speed,angle,Gravity,A119,dT) ) -> -1
A120: 52 | B120: =IF( C120<0,B119, NewX(B119,speed,angle,dT) ) -> 19509.7126 | C120: =IF(C119<0,-1,NewY(C119,speed,angle,Gravity,A120,dT) ) -> -1
A121: 52.5 | B121: =IF( C121<0,B120, NewX(B120,speed,angle,dT) ) -> 19509.7126 | C121: =IF(C120<0,-1,NewY(C120,speed,angle,Gravity,A121,dT) ) -> -1
A122: 53 | B122: =IF( C122<0,B121, NewX(B121,speed,angle,dT) ) -> 19509.7126 | C122: =IF(C121<0,-1,NewY(C121,speed,angle,Gravity,A122,dT) ) -> -1
A123: 53.5 | B123: =IF( C123<0,B122, NewX(B122,speed,angle,dT) ) -> 19509.7126 | C123: =IF(C122<0,-1,NewY(C122,speed,angle,Gravity,A123,dT) ) -> -1
A124: 54 | B124: =IF( C124<0,B123, NewX(B123,speed,angle,dT) ) -> 19509.7126 | C124: =IF(C123<0,-1,NewY(C123,speed,angle,Gravity,A124,dT) ) -> -1
A125: 54.5 | B125: =IF( C125<0,B124, NewX(B124,speed,angle,dT) ) -> 19509.7126 | C125: =IF(C124<0,-1,NewY(C124,speed,angle,Gravity,A125,dT) ) -> -1
A126: 55 | B126: =IF( C126<0,B125, NewX(B125,speed,angle,dT) ) -> 19509.7126 | C126: =IF(C125<0,-1,NewY(C125,speed,angle,Gravity,A126,dT) ) -> -1
A127: 55.5 | B127: =IF( C127<0,B126, NewX(B126,speed,angle,dT) ) -> 19509.7126 | C127: =IF(C126<0,-1,NewY(C126,speed,angle,Gravity,A127,dT) ) -> -1
A128: 56 | B128: =IF( C128<0,B127, NewX(B127,speed,angle,dT) ) -> 19509.7126 | C128: =IF(C127<0,-1,NewY(C127,speed,angle,Gravity,A128,dT) ) -> -1
A129: 56.5 | B129: =IF( C129<0,B128, NewX(B128,speed,angle,dT) ) -> 19509.7126 | C129: =IF(C128<0,-1,NewY(C128,speed,angle,Gravity,A129,dT) ) -> -1
A130: 57 | B130: =IF( C130<0,B129, NewX(B129,speed,angle,dT) ) -> 19509.7126 | C130: =IF(C129<0,-1,NewY(C129,speed,angle,Gravity,A130,dT) ) -> -1
A131: 57.5 | B131: =IF( C131<0,B130, NewX(B130,speed,angle,dT) ) -> 19509.7126 | C131: =IF(C130<0,-1,NewY(C130,speed,angle,Gravity,A131,dT) ) -> -1
A132: 58 | B132: =IF( C132<0,B131, NewX(B131,speed,angle,dT) ) -> 19509.7126 | C132: =IF(C131<0,-1,NewY(C131,speed,angle,Gravity,A132,dT) ) -> -1
A133: 58.5 | B133: =IF( C133<0,B132, NewX(B132,speed,angle,dT) ) -> 19509.7126 | C133: =IF(C132<0,-1,NewY(C132,speed,angle,Gravity,A133,dT) ) -> -1
A134: 59 | B134: =IF( C134<0,B133, NewX(B133,speed,angle,dT) ) -> 19509.7126 | C134: =IF(C133<0,-1,NewY(C133,speed,angle,Gravity,A134,dT) ) -> -1
A135: 59.5 | B135: =IF( C135<0,B134, NewX(B134,speed,angle,dT) ) -> 19509.7126 | C135: =IF(C134<0,-1,NewY(C134,speed,angle,Gravity,A135,dT) ) -> -1
A136: 60 | B136: =IF( C136<0,B135, NewX(B135,speed,angle,dT) ) -> 19509.7126 | C136: =IF(C135<0,-1,NewY(C135,speed,angle,Gravity,A136,dT) ) -> -1
A137: 60.5 | B137: =IF( C137<0,B136, NewX(B136,speed,angle,dT) ) -> 19509.7126 | C137: =IF(C136<0,-1,NewY(C136,speed,angle,Gravity,A137,dT) ) -> -1
A138: 61 | B138: =IF( C138<0,B137, NewX(B137,speed,angle,dT) ) -> 19509.7126 | C138: =IF(C137<0,-1,NewY(C137,speed,angle,Gravity,A138,dT) ) -> -1
A139: 61.5 | B139: =IF( C139<0,B138, NewX(B138,speed,angle,dT) ) -> 19509.7126 | C139: =IF(C138<0,-1,NewY(C138,speed,angle,Gravity,A139,dT) ) -> -1
A140: 62 | B140: =IF( C140<0,B139, NewX(B139,speed,angle,dT) ) -> 19509.7126 | C140: =IF(C139<0,-1,NewY(C139,speed,angle,Gravity,A140,dT) ) -> -1
A141: 62.5 | B141: =IF( C141<0,B140, NewX(B140,speed,angle,dT) ) -> 19509.7126 | C141: =IF(C140<0,-1,NewY(C140,speed,angle,Gravity,A141,dT) ) -> -1
A142: 63 | B142: =IF( C142<0,B141, NewX(B141,speed,angle,dT) ) -> 19509.7126 | C142: =IF(C141<0,-1,NewY(C141,speed,angle,Gravity,A142,dT) ) -> -1
A143: 63.5 | B143: =IF( C143<0,B142, NewX(B142,speed,angle,dT) ) -> 19509.7126 | C143: =IF(C142<0,-1,NewY(C142,speed,angle,Gravity,A143,dT) ) -> -1
A144: 64 | B144: =IF( C144<0,B143, NewX(B143,speed,angle,dT) ) -> 19509.7126 | C144: =IF(C143<0,-1,NewY(C143,speed,angle,Gravity,A144,dT) ) -> -1
A145: =$B$2+A144 -> 64.5 | B145: =IF( C145<0,B144, NewX(B144,speed,angle,dT) ) -> 19509.7126 | C145: =IF(C144<0,-1,NewY(C144,speed,angle,Gravity,A145,dT) ) -> -1
A146: 65 | B146: =IF( C146<0,B145, NewX(B145,speed,angle,dT) ) -> 19509.7126 | C146: =IF(C145<0,-1,NewY(C145,speed,angle,Gravity,A146,dT) ) -> -1
A147: 65.5 | B147: =IF( C147<0,B146, NewX(B146,speed,angle,dT) ) -> 19509.7126 | C147: =IF(C146<0,-1,NewY(C146,speed,angle,Gravity,A147,dT) ) -> -1
A148: 66 | B148: =IF( C148<0,B147, NewX(B147,speed,angle,dT) ) -> 19509.7126 | C148: =IF(C147<0,-1,NewY(C147,speed,angle,Gravity,A148,dT) ) -> -1
A149: 66.5 | B149: =IF( C149<0,B148, NewX(B148,speed,angle,dT) ) -> 19509.7126 | C149: =IF(C148<0,-1,NewY(C148,speed,angle,Gravity,A149,dT) ) -> -1
A150: 67 | B150: =IF( C150<0,B149, NewX(B149,speed,angle,dT) ) -> 19509.7126 | C150: =IF(C149<0,-1,NewY(C149,speed,angle,Gravity,A150,dT) ) -> -1
A151: 67.5 | B151: =IF( C151<0,B150, NewX(B150,speed,angle,dT) ) -> 19509.7126 | C151: =IF(C150<0,-1,NewY(C150,speed,angle,Gravity,A151,dT) ) -> -1
A152: 68 | B152: =IF( C152<0,B151, NewX(B151,speed,angle,dT) ) -> 19509.7126 | C152: =IF(C151<0,-1,NewY(C151,speed,angle,Gravity,A152,dT) ) -> -1
A153: 68.5 | B153: =IF( C153<0,B152, NewX(B152,speed,angle,dT) ) -> 19509.7126 | C153: =IF(C152<0,-1,NewY(C152,speed,angle,Gravity,A153,dT) ) -> -1
A154: 69 | B154: =IF( C154<0,B153, NewX(B153,speed,angle,dT) ) -> 19509.7126 | C154: =IF(C153<0,-1,NewY(C153,speed,angle,Gravity,A154,dT) ) -> -1
A155: 69.5 | B155: =IF( C155<0,B154, NewX(B154,speed,angle,dT) ) -> 19509.7126 | C155: =IF(C154<0,-1,NewY(C154,speed,angle,Gravity,A155,dT) ) -> -1
A156: 70 | B156: =IF( C156<0,B155, NewX(B155,speed,angle,dT) ) -> 19509.7126 | C156: =IF(C155<0,-1,NewY(C155,speed,angle,Gravity,A156,dT) ) -> -1
A157: 70.5 | B157: =IF( C157<0,B156, NewX(B156,speed,angle,dT) ) -> 19509.7126 | C157: =IF(C156<0,-1,NewY(C156,speed,angle,Gravity,A157,dT) ) -> -1
A158: 71 | B158: =IF( C158<0,B157, NewX(B157,speed,angle,dT) ) -> 19509.7126 | C158: =IF(C157<0,-1,NewY(C157,speed,angle,Gravity,A158,dT) ) -> -1
A159: 71.5 | B159: =IF( C159<0,B158, NewX(B158,speed,angle,dT) ) -> 19509.7126 | C159: =IF(C158<0,-1,NewY(C158,speed,angle,Gravity,A159,dT) ) -> -1
A160: 72 | B160: =IF( C160<0,B159, NewX(B159,speed,angle,dT) ) -> 19509.7126 | C160: =IF(C159<0,-1,NewY(C159,speed,angle,Gravity,A160,dT) ) -> -1
A161: 72.5 | B161: =IF( C161<0,B160, NewX(B160,speed,angle,dT) ) -> 19509.7126 | C161: =IF(C160<0,-1,NewY(C160,speed,angle,Gravity,A161,dT) ) -> -1
A162: 73 | B162: =IF( C162<0,B161, NewX(B161,speed,angle,dT) ) -> 19509.7126 | C162: =IF(C161<0,-1,NewY(C161,speed,angle,Gravity,A162,dT) ) -> -1
A163: 73.5 | B163: =IF( C163<0,B162, NewX(B162,speed,angle,dT) ) -> 19509.7126 | C163: =IF(C162<0,-1,NewY(C162,speed,angle,Gravity,A163,dT) ) -> -1
A164: 74 | B164: =IF( C164<0,B163, NewX(B163,speed,angle,dT) ) -> 19509.7126 | C164: =IF(C163<0,-1,NewY(C163,speed,angle,Gravity,A164,dT) ) -> -1
A165: 74.5 | B165: =IF( C165<0,B164, NewX(B164,speed,angle,dT) ) -> 19509.7126 | C165: =IF(C164<0,-1,NewY(C164,speed,angle,Gravity,A165,dT) ) -> -1
A166: 75 | B166: =IF( C166<0,B165, NewX(B165,speed,angle,dT) ) -> 19509.7126 | C166: =IF(C165<0,-1,NewY(C165,speed,angle,Gravity,A166,dT) ) -> -1
A167: 75.5 | B167: =IF( C167<0,B166, NewX(B166,speed,angle,dT) ) -> 19509.7126 | C167: =IF(C166<0,-1,NewY(C166,speed,angle,Gravity,A167,dT) ) -> -1
A168: 76 | B168: =IF( C168<0,B167, NewX(B167,speed,angle,dT) ) -> 19509.7126 | C168: =IF(C167<0,-1,NewY(C167,speed,angle,Gravity,A168,dT) ) -> -1
A169: 76.5 | B169: =IF( C169<0,B168, NewX(B168,speed,angle,dT) ) -> 19509.7126 | C169: =IF(C168<0,-1,NewY(C168,speed,angle,Gravity,A169,dT) ) -> -1
A170: 77 | B170: =IF( C170<0,B169, NewX(B169,speed,angle,dT) ) -> 19509.7126 | C170: =IF(C169<0,-1,NewY(C169,speed,angle,Gravity,A170,dT) ) -> -1
A171: 77.5 | B171: =IF( C171<0,B170, NewX(B170,speed,angle,dT) ) -> 19509.7126 | C171: =IF(C170<0,-1,NewY(C170,speed,angle,Gravity,A171,dT) ) -> -1
A172: 78 | B172: =IF( C172<0,B171, NewX(B171,speed,angle,dT) ) -> 19509.7126 | C172: =IF(C171<0,-1,NewY(C171,speed,angle,Gravity,A172,dT) ) -> -1
A173: 78.5 | B173: =IF( C173<0,B172, NewX(B172,speed,angle,dT) ) -> 19509.7126 | C173: =IF(C172<0,-1,NewY(C172,speed,angle,Gravity,A173,dT) ) -> -1
A174: 79 | B174: =IF( C174<0,B173, NewX(B173,speed,angle,dT) ) -> 19509.7126 | C174: =IF(C173<0,-1,NewY(C173,speed,angle,Gravity,A174,dT) ) -> -1
A175: 79.5 | B175: =IF( C175<0,B174, NewX(B174,speed,angle,dT) ) -> 19509.7126 | C175: =IF(C174<0,-1,NewY(C174,speed,angle,Gravity,A175,dT) ) -> -1
A176: 80 | B176: =IF( C176<0,B175, NewX(B175,speed,angle,dT) ) -> 19509.7126 | C176: =IF(C175<0,-1,NewY(C175,speed,angle,Gravity,A176,dT) ) -> -1
A177: 80.5 | B177: =IF( C177<0,B176, NewX(B176,speed,angle,dT) ) -> 19509.7126 | C177: =IF(C176<0,-1,NewY(C176,speed,angle,Gravity,A177,dT) ) -> -1
A178: 81 | B178: =IF( C178<0,B177, NewX(B177,speed,angle,dT) ) -> 19509.7126 | C178: =IF(C177<0,-1,NewY(C177,speed,angle,Gravity,A178,dT) ) -> -1
A179: 81.5 | B179: =IF( C179<0,B178, NewX(B178,speed,angle,dT) ) -> 19509.7126 | C179: =IF(C178<0,-1,NewY(C178,speed,angle,Gravity,A179,dT) ) -> -1
A180: 82 | B180: =IF( C180<0,B179, NewX(B179,speed,angle,dT) ) -> 19509.7126 | C180: =IF(C179<0,-1,NewY(C179,speed,angle,Gravity,A180,dT) ) -> -1
A181: 82.5 | B181: =IF( C181<0,B180, NewX(B180,speed,angle,dT) ) -> 19509.7126 | C181: =IF(C180<0,-1,NewY(C180,speed,angle,Gravity,A181,dT) ) -> -1
A182: 83 | B182: =IF( C182<0,B181, NewX(B181,speed,angle,dT) ) -> 19509.7126 | C182: =IF(C181<0,-1,NewY(C181,speed,angle,Gravity,A182,dT) ) -> -1
A183: 83.5 | B183: =IF( C183<0,B182, NewX(B182,speed,angle,dT) ) -> 19509.7126 | C183: =IF(C182<0,-1,NewY(C182,speed,angle,Gravity,A183,dT) ) -> -1
A184: 84 | B184: =IF( C184<0,B183, NewX(B183,speed,angle,dT) ) -> 19509.7126 | C184: =IF(C183<0,-1,NewY(C183,speed,angle,Gravity,A184,dT) ) -> -1
A185: 84.5 | B185: =IF( C185<0,B184, NewX(B184,speed,angle,dT) ) -> 19509.7126 | C185: =IF(C184<0,-1,NewY(C184,speed,angle,Gravity,A185,dT) ) -> -1
A186: 85 | B186: =IF( C186<0,B185, NewX(B185,speed,angle,dT) ) -> 19509.7126 | C186: =IF(C185<0,-1,NewY(C185,speed,angle,Gravity,A186,dT) ) -> -1
A187: 85.5 | B187: =IF( C187<0,B186, NewX(B186,speed,angle,dT) ) -> 19509.7126 | C187: =IF(C186<0,-1,NewY(C186,speed,angle,Gravity,A187,dT) ) -> -1
A188: 86 | B188: =IF( C188<0,B187, NewX(B187,speed,angle,dT) ) -> 19509.7126 | C188: =IF(C187<0,-1,NewY(C187,speed,angle,Gravity,A188,dT) ) -> -1
A189: 86.5 | B189: =IF( C189<0,B188, NewX(B188,speed,angle,dT) ) -> 19509.7126 | C189: =IF(C188<0,-1,NewY(C188,speed,angle,Gravity,A189,dT) ) -> -1
A190: 87 | B190: =IF( C190<0,B189, NewX(B189,speed,angle,dT) ) -> 19509.7126 | C190: =IF(C189<0,-1,NewY(C189,speed,angle,Gravity,A190,dT) ) -> -1
A191: 87.5 | B191: =IF( C191<0,B190, NewX(B190,speed,angle,dT) ) -> 19509.7126 | C191: =IF(C190<0,-1,NewY(C190,speed,angle,Gravity,A191,dT) ) -> -1
A192: 88 | B192: =IF( C192<0,B191, NewX(B191,speed,angle,dT) ) -> 19509.7126 | C192: =IF(C191<0,-1,NewY(C191,speed,angle,Gravity,A192,dT) ) -> -1
A193: 88.5 | B193: =IF( C193<0,B192, NewX(B192,speed,angle,dT) ) -> 19509.7126 | C193: =IF(C192<0,-1,NewY(C192,speed,angle,Gravity,A193,dT) ) -> -1
A194: 89 | B194: =IF( C194<0,B193, NewX(B193,speed,angle,dT) ) -> 19509.7126 | C194: =IF(C193<0,-1,NewY(C193,speed,angle,Gravity,A194,dT) ) -> -1
A195: 89.5 | B195: =IF( C195<0,B194, NewX(B194,speed,angle,dT) ) -> 19509.7126 | C195: =IF(C194<0,-1,NewY(C194,speed,angle,Gravity,A195,dT) ) -> -1
A196: 90 | B196: =IF( C196<0,B195, NewX(B195,speed,angle,dT) ) -> 19509.7126 | C196: =IF(C195<0,-1,NewY(C195,speed,angle,Gravity,A196,dT) ) -> -1
A197: 90.5 | B197: =IF( C197<0,B196, NewX(B196,speed,angle,dT) ) -> 19509.7126 | C197: =IF(C196<0,-1,NewY(C196,speed,angle,Gravity,A197,dT) ) -> -1
A198: 91 | B198: =IF( C198<0,B197, NewX(B197,speed,angle,dT) ) -> 19509.7126 | C198: =IF(C197<0,-1,NewY(C197,speed,angle,Gravity,A198,dT) ) -> -1
A199: 91.5 | B199: =IF( C199<0,B198, NewX(B198,speed,angle,dT) ) -> 19509.7126 | C199: =IF(C198<0,-1,NewY(C198,speed,angle,Gravity,A199,dT) ) -> -1
A200: 92 | B200: =IF( C200<0,B199, NewX(B199,speed,angle,dT) ) -> 19509.7126 | C200: =IF(C199<0,-1,NewY(C199,speed,angle,Gravity,A200,dT) ) -> -1
A201: 92.5 | B201: =IF( C201<0,B200, NewX(B200,speed,angle,dT) ) -> 19509.7126 | C201: =IF(C200<0,-1,NewY(C200,speed,angle,Gravity,A201,dT) ) -> -1
A202: 93 | B202: =IF( C202<0,B201, NewX(B201,speed,angle,dT) ) -> 19509.7126 | C202: =IF(C201<0,-1,NewY(C201,speed,angle,Gravity,A202,dT) ) -> -1
A203: 93.5 | B203: =IF( C203<0,B202, NewX(B202,speed,angle,dT) ) -> 19509.7126 | C203: =IF(C202<0,-1,NewY(C202,speed,angle,Gravity,A203,dT) ) -> -1
A204: 94 | B204: =IF( C204<0,B203, NewX(B203,speed,angle,dT) ) -> 19509.7126 | C204: =IF(C203<0,-1,NewY(C203,speed,angle,Gravity,A204,dT) ) -> -1
... 596 more rows

Sheet Life
O1: Generation
A5: Current | B5: 0 | C5: 0 | D5: 0 | E5: 0 | F5: 0 | G5: 0 | H5: 0 | I5: 0 | J5: 0 | K5: 0 | L5: 0 | M5: 0 | O5: 0
A6: Generation | B6: 0 | C6: 0 | D6: 0 | E6: 0 | F6: 0 | G6: 0 | H6: 0 | I6: 0 | J6: 0 | K6: 0 | L6: 0 | M6: 0
B7: 0 | C7: 0 | D7: 0 | E7: 0 | F7: 0 | G7: 0 | H7: 0 | I7: 0 | J7: 0 | K7: 0 | L7: 0 | M7: 0
B8: 0 | C8: 0 | D8: 0 | E8: 0 | F8: 0 | G8: 0 | H8: 0 | I8: 0 | J8: 0 | K8: 0 | L8: 0 | M8: 0 | R8: Updates/Press | S8: 4
B9: 0 | C9: 0 | D9: 0 | E9: 0 | F9: 0 | G9: 0 | H9: 0 | I9: 0 | J9: 0 | K9: 0 | L9: 0 | M9: 0 | R9: (Value in S8)
B10: 0 | C10: 0 | D10: 0 | E10: 0 | F10: 0 | G10: 0 | H10: 0 | I10: 0 | J10: 0 | K10: 0 | L10: 0 | M10: 0
B11: 0 | C11: 0 | D11: 0 | E11: 0 | F11: 0 | G11: 0 | H11: 0 | I11: 0 | J11: 0 | K11: 0 | L11: 0 | M11: 0
B12: 0 | C12: 0 | D12: 0 | E12: 0 | F12: 0 | G12: 0 | H12: 0 | I12: 0 | J12: 0 | K12: 0 | L12: 0 | M12: 0
B13: 0 | C13: 0 | D13: 0 | E13: 0 | F13: 0 | G13: 0 | H13: 0 | I13: 0 | J13: 0 | K13: 0 | L13: 0 | M13: 0
B14: 0 | C14: 0 | D14: 0 | E14: 0 | F14: 0 | G14: 0 | H14: 0 | I14: 0 | J14: 0 | K14: 0 | L14: 0 | M14: 0
B15: 0 | C15: 0 | D15: 0 | E15: 0 | F15: 0 | G15: 0 | H15: 0 | I15: 0 | J15: 0 | K15: 0 | L15: 0 | M15: 0
A18: Count of Live | B18: 0 | C18: 0 | D18: 0 | E18: 0 | F18: 0 | G18: 0 | H18: 0 | I18: 0 | J18: 0 | K18: 0 | L18: 0 | M18: 0
A19: Neigbhors | B19: 0 | C19: =SUM(B5:D7)-C6 -> 0 | D19: 0 | E19: 0 | F19: 0 | G19: 0 | H19: 0 | I19: 0 | J19: 0 | K19: 0 | L19: 0 | M19: 0
A20: in Top Rectangle | B20: 0 | C20: =SUM(B6:D8)-C7 -> 0 | D20: 0 | E20: 0 | F20: 0 | G20: 0 | H20: 0 | I20: 0 | J20: 0 | K20: 0 | L20: 0 | M20: 0
B21: 0 | C21: =SUM(B7:D9)-C8 -> 0 | D21: 0 | E21: 0 | F21: 0 | G21: 0 | H21: 0 | I21: 0 | J21: 0 | K21: 0 | L21: 0 | M21: 0
B22: 0 | C22: =SUM(B8:D10)-C9 -> 0 | D22: 0 | E22: 0 | F22: 0 | G22: 0 | H22: 0 | I22: 0 | J22: 0 | K22: 0 | L22: 0 | M22: 0
B23: 0 | C23: =SUM(B9:D11)-C10 -> 0 | D23: 0 | E23: 0 | F23: 0 | G23: 0 | H23: 0 | I23: 0 | J23: 0 | K23: 0 | L23: 0 | M23: 0
B24: 0 | C24: =SUM(B10:D12)-C11 -> 0 | D24: 0 | E24: 0 | F24: 0 | G24: 0 | H24: 0 | I24: 0 | J24: 0 | K24: 0 | L24: 0 | M24: 0
B25: 0 | C25: =SUM(B11:D13)-C12 -> 0 | D25: 0 | E25: 0 | F25: 0 | G25: 0 | H25: 0 | I25: 0 | J25: 0 | K25: 0 | L25: 0 | M25: 0
B26: 0 | C26: =SUM(B12:D14)-C13 -> 0 | D26: 0 | E26: 0 | F26: 0 | G26: 0 | H26: 0 | I26: 0 | J26: 0 | K26: 0 | L26: 0 | M26: 0
B27: 0 | C27: =SUM(B13:D15)-C14 -> 0 | D27: 0 | E27: 0 | F27: 0 | G27: 0 | H27: 0 | I27: 0 | J27: 0 | K27: 0 | L27: 0 | M27: 0
B28: 0 | C28: 0 | D28: 0 | E28: 0 | F28: 0 | G28: 0 | H28: 0 | I28: 0 | J28: 0 | K28: 0 | L28: 0 | M28: 0
A31: Next | B31: 0 | C31: 0 | D31: 0 | E31: 0 | F31: 0 | G31: 0 | H31: 0 | I31: 0 | J31: 0 | K31: 0 | L31: 0 | M31: 0 | O31: =O5+1 -> 1
A32: Generation | B32: 0 | C32: =IF( OR(C19=3,AND(C6=1,C19=2)), 1, 0) -> 0 | D32: 0 | E32: 0 | F32: 0 | G32: 0 | H32: 0 | I32: 0 | J32: 0 | K32: 0 | L32: 0 | M32: 0
B33: 0 | C33: =IF( OR(C20=3,AND(C7=1,C20=2)), 1, 0) -> 0 | D33: 0 | E33: 0 | F33: 0 | G33: 0 | H33: 0 | I33: 0 | J33: 0 | K33: 0 | L33: 0 | M33: 0
B34: 0 | C34: =IF( OR(C21=3,AND(C8=1,C21=2)), 1, 0) -> 0 | D34: 0 | E34: 0 | F34: 0 | G34: 0 | H34: 0 | I34: 0 | J34: 0 | K34: 0 | L34: 0 | M34: 0
B35: 0 | C35: =IF( OR(C22=3,AND(C9=1,C22=2)), 1, 0) -> 0 | D35: 0 | E35: 0 | F35: 0 | G35: 0 | H35: 0 | I35: 0 | J35: 0 | K35: 0 | L35: 0 | M35: 0
B36: 0 | C36: =IF( OR(C23=3,AND(C10=1,C23=2)), 1, 0) -> 0 | D36: 0 | E36: 0 | F36: 0 | G36: 0 | H36: 0 | I36: 0 | J36: 0 | K36: 0 | L36: 0 | M36: 0
B37: 0 | C37: =IF( OR(C24=3,AND(C11=1,C24=2)), 1, 0) -> 0 | D37: 0 | E37: 0 | F37: 0 | G37: 0 | H37: 0 | I37: 0 | J37: 0 | K37: 0 | L37: 0 | M37: 0
B38: 0 | C38: =IF( OR(C25=3,AND(C12=1,C25=2)), 1, 0) -> 0 | D38: 0 | E38: 0 | F38: 0 | G38: 0 | H38: 0 | I38: 0 | J38: 0 | K38: 0 | L38: 0 | M38: 0
B39: 0 | C39: =IF( OR(C26=3,AND(C13=1,C26=2)), 1, 0) -> 0 | D39: 0 | E39: 0 | F39: 0 | G39: 0 | H39: 0 | I39: 0 | J39: 0 | K39: 0 | L39: 0 | M39: 0
B40: 0 | C40: =IF( OR(C27=3,AND(C14=1,C27=2)), 1, 0) -> 0 | D40: 0 | E40: 0 | F40: 0 | G40: 0 | H40: 0 | I40: 0 | J40: 0 | K40: 0 | L40: 0 | M40: 0
B41: 0 | C41: 0 | D41: 0 | E41: 0 | F41: 0 | G41: 0 | H41: 0 | I41: 0 | J41: 0 | K41: 0 | L41: 0 | M41: 0
